Workbook

Sheet 읍면동별 세대 및 인구
A1: 여수시 읍면동별 세대 및 인구
A2: 작성기준 : 2020. 3. 31. 현재 | J2: (단위 : 세대, 명)
A3: 구 분 | B3: 세대수1) | C3: 합 계 | F3: 한국인 | I3: 외국인
C4: 계 | D4: 남 | E4: 여 | F4: 계 | G4: 남 | H4: 여 | I4: 계 | J4: 남 | K4: 여
A5: 19년 7월말 | B5: 122,374 | C5: 287,274 | D5: 146,905 | E5: 140,369 | F5: 282,632 | G5: 143,615 | H5: 139,017 | I5: 4,642 | J5: 3,290 | K5: 1,352
A6: 19년 8월말 | B6: 122,466 | C6: 287,049 | D6: 146,810 | E6: 140,239 | F6: 282,357 | G6: 143,470 | H6: 138,887 | I6: 4,692 | J6: 3,340 | K6: 1,352
A7: 19년 9월말 | B7: 122,689 | C7: 286,848 | D7: 146,666 | E7: 140,182 | F7: 282,188 | G7: 143,373 | H7: 138,815 | I7: 4,660 | J7: 3,293 | K7: 1,367
A8: 19년 10월말 | B8: 122,918 | C8: 286,729 | D8: 146,654 | E8: 140,075 | F8: 282,058 | G8: 143,351 | H8: 138,707 | I8: 4,671 | J8: 3,303 | K8: 1,368
A9: 19년 11월말 | B9: 123,445 | C9: 287,673 | D9: 147,163 | E9: 140,510 | F9: 282,980 | G9: 143,857 | H9: 139,123 | I9: 4,693 | J9: 3,306 | K9: 1,387
A10: 19년 12월말 | B10: 123,677 | C10: 287,410 | D10: 147,059 | E10: 140,351 | F10: 282,786 | G10: 143,791 | H10: 138,995 | I10: 4,624 | J10: 3,268 | K10: 1,356
A11: 20년 1월말 | B11: 123,794 | C11: 287,072 | D11: 146,959 | E11: 140,113 | F11: 282,356 | G11: 143,642 | H11: 138,714 | I11: 4,716 | J11: 3,317 | K11: 1,399
A12: 20년 2월말 | B12: 124,062 | C12: 286,757 | D12: 146,940 | E12: 139,817 | F12: 282,062 | G12: 143,645 | H12: 138,417 | I12: 4,695 | J12: 3,295 | K12: 1,400
A13: 20년 3월말 | B13: 124,363 | C13: =SUM(C14:C40) -> 286,451 | D13: 146,804 | E13: 139,647 | F13: 281,794 | G13: 143,551 | H13: 138,243 | I13: 4,657 | J13: 3,253 | K13: 1,404
A14: 돌산읍 | B14: 6,618 | C14: =SUM(D14:E14) -> 14,139 | D14: =SUM(G14+J14) -> 7,502 | E14: =SUM(H14+K14) -> 6,637 | F14: =SUM(G14,H14) -> 13,369 | G14: 6,833 | H14: 6,536 | I14: =SUM(J14:K14) -> 770 | J14: 669 | K14: 101
A15: 소라면 | B15: 8,785 | C15: 20,973 | D15: =SUM(G15+J15) -> 10,640 | E15: =SUM(H15+K15) -> 10,333 | F15: =SUM(G15,H15) -> 20,833 | G15: 10,594 | H15: 10,239 | I15: 140 | J15: 46 | K15: 94
A16: 율촌면 | B16: 3,249 | C16: 6,517 | D16: =SUM(G16+J16) -> 3,390 | E16: 3,127 | F16: 6,365 | G16: 3,282 | H16: 3,083 | I16: 152 | J16: 108 | K16: 44
A17: 화양면 | B17: 3,524 | C17: 6,689 | D17: 3,491 | E17: 3,198 | F17: 6,528 | G17: 3,372 | H17: 3,156 | I17: 161 | J17: 119 | K17: 42
A18: 남면 | B18: 1,669 | C18: 3,016 | D18: 1,577 | E18: 1,439 | F18: 2,908 | G18: 1,482 | H18: 1,426 | I18: 108 | J18: 95 | K18: 13
A19: 화정면 | B19: 1,295 | C19: 2,250 | D19: 1,126 | E19: 1,124 | F19: 2,195 | G19: 1,075 | H19: 1,120 | I19: 55 | J19: 51 | K19: 4
A20: 삼산면 | B20: 1,223 | C20: 2,198 | D20: 1,251 | E20: 947 | F20: 2,107 | G20: 1,169 | H20: 938 | I20: 91 | J20: 82 | K20: 9
A21: 동문동 | B21: 2,478 | C21: 4,771 | D21: 2,419 | E21: 2,352 | F21: 4,713 | G21: 2,381 | H21: 2,332 | I21: 58 | J21: 38 | K21: 20
A22: 한려동 | B22: 1,823 | C22: 3,306 | D22: 1,676 | E22: 1,630 | F22: 3,281 | G22: 1,669 | H22: 1,612 | I22: 25 | J22: 7 | K22: 18
A23: 중앙동 | B23: 2,320 | C23: 4,614 | D23: 2,327 | E23: 2,287 | F23: 4,507 | G23: 2,249 | H23: 2,258 | I23: 107 | J23: 78 | K23: 29
A24: 충무동 | B24: 2,238 | C24: 4,171 | D24: 2,151 | E24: 2,020 | F24: 4,124 | G24: 2,120 | H24: 2,004 | I24: 47 | J24: 31 | K24: 16
A25: 광림동 | B25: 3,268 | C25: 6,440 | D25: 3,323 | E25: 3,117 | F25: 6,388 | G25: 3,307 | H25: 3,081 | I25: 52 | J25: 16 | K25: 36
A26: 서강동 | B26: 1,910 | C26: 3,897 | D26: 1,923 | E26: 1,974 | F26: 3,870 | G26: 1,915 | H26: 1,955 | I26: 27 | J26: 8 | K26: 19
A27: 대교동 | B27: 3,106 | C27: 5,865 | D27: 3,105 | E27: 2,760 | F27: 5,582 | G27: 2,862 | H27: 2,720 | I27: 283 | J27: 243 | K27: 40
A28: 국동 | B28: 5,410 | C28: 12,383 | D28: 6,404 | E28: 5,979 | F28: 12,001 | G28: 6,077 | H28: 5,924 | I28: 382 | J28: 327 | K28: 55
A29: 월호동 | B29: 2,921 | C29: 7,500 | D29: 3,840 | E29: 3,660 | F29: 7,206 | G29: 3,574 | H29: 3,632 | I29: 294 | J29: 266 | K29: 28
A30: 여서동 | B30: 7,830 | C30: 19,416 | D30: 9,561 | E30: 9,855 | F30: 19,261 | G30: 9,493 | H30: 9,768 | I30: 155 | J30: 68 | K30: 87
A31: 문수동 | B31: 8,723 | C31: 20,206 | D31: 10,208 | E31: 9,998 | F31: 19,860 | G31: 9,990 | H31: 9,870 | I31: 346 | J31: 218 | K31: 128
A32: 미평동 | B32: 5,740 | C32: 12,293 | D32: 6,561 | E32: 5,732 | F32: 12,088 | G32: 6,425 | H32: 5,663 | I32: 205 | J32: 136 | K32: 69
A33: 둔덕동 | B33: 4,034 | C33: 10,741 | D33: 5,389 | E33: 5,352 | F33: 10,595 | G33: 5,332 | H33: 5,263 | I33: 146 | J33: 57 | K33: 89
A34: 만덕동 | B34: 4,397 | C34: 10,744 | D34: 5,405 | E34: 5,339 | F34: 10,589 | G34: 5,311 | H34: 5,278 | I34: 155 | J34: 94 | K34: 61
A35: 쌍봉동 | B35: 13,319 | C35: 33,354 | D35: 17,149 | E35: 16,205 | F35: 33,115 | G35: 17,025 | H35: 16,090 | I35: 239 | J35: 124 | K35: 115
A36: 시전동 | B36: 13,552 | C36: 36,809 | D36: 18,533 | E36: 18,276 | F36: 36,538 | G36: 18,374 | H36: 18,164 | I36: 271 | J36: 159 | K36: 112
A37: 여천동 | B37: 10,041 | C37: 21,999 | D37: 11,518 | E37: 10,481 | F37: 21,831 | G37: 11,468 | H37: 10,363 | I37: 168 | J37: 50 | K37: 118
A38: 주삼동 | B38: 2,985 | C38: 8,276 | D38: 4,203 | E38: 4,073 | F38: 8,209 | G38: 4,173 | H38: 4,036 | I38: 67 | J38: 30 | K38: 37
A39: 삼일동 | B39: 1,291 | C39: 2,657 | D39: 1,496 | E39: 1,161 | F39: 2,512 | G39: 1,364 | H39: 1,148 | I39: 145 | J39: 132 | K39: 13
A40: 묘도동 | B40: 614 | C40: 1,227 | D40: 636 | E40: 591 | F40: 1,219 | G40: 635 | H40: 584 | I40: 8 | J40: 1 | K40: 7
A41: 주 : 1) 세대수에는 외국인 세대 제외

Sheet 65세이상 인구(총괄)
A1: 65세이상 인구 현황(총괄)
A2: 작성기준 : 2020. 2. 29. 현재 | D2: (단위 : 명)
A3: 구 분 | B3: 계 | C3: 남 | D3: 여 | E3: 노령화 지수
A4: 2011년말 | B4: 37,830 | C4: 15,023 | D4: 22,807 | E4: 82.0
A5: 2012년말 | B5: 39,671 | C5: 15,929 | D5: 23,742 | E5: 89.4
A6: 2013년말 | B6: 41,369 | C6: 16,775 | D6: 24,594 | E6: 96.8
A7: 2014년말 | B7: 43,225 | C7: 17,752 | D7: 25,473 | E7: 105.4
A8: 2015년말 | B8: 44,997 | C8: 18,775 | D8: 26,222 | E8: 114.3
A9: 2016년말 | B9: 46,632 | C9: 19,720 | D9: 26,912 | E9: 121.8
A10: 2017년말 | B10: 48,569 | C10: 20,703 | D10: 27,866 | E10: 130.6
A11: 2018년말 | B11: 49,609 | C11: 21,259 | D11: 28,350 | E11: 139.0
A12: 2019년말 | B12: 51,995 | C12: 22,462 | D12: 29,533 | E12: 151.0
A13: 2020년 1월말 | B13: 52,215 | C13: 22,585 | D13: 29,630 | E13: 152.3
A14: 2020년 2월말 | B14: 52,449 | C14: 22,683 | D14: 29,766 | E14: 153.4
A15: 2020년 3월말 | B15: 52,832 | C15: 22,903 | D15: 29,929 | E15: 154.8
A16: 자료 : 민원지적과
A17: 주 : 노령화 지수 = (65세이상인구 / 0~14세 인구) * 100
J26: `
